fUST/lending_fUST_20240128
["ID","MTS","AMOUNT","RATE_DAILY","PERIOD"]
[312898437,1706437839936,-511.78379089,0.00021917,2]
[312898438,1706437839944,-500.0,0.00021917,2]
[312898439,1706437839953,-500.0,0.00021917,2]
[312898440,1706437839963,-500.0,0.00021917,2]
[312898441,1706437839972,-506.28658522,0.00021917,2]
[312898442,1706437839982,-500.0,0.00021917,2]
[312898443,1706437839991,-13960.78,0.00021917,2]
[312898444,1706437840000,-500.0,0.00021917,2]
[312898445,1706437840009,-512.16512598,0.00021917,2]
[312898446,1706437840018,-152.51532776,0.00021917,2]
[312898447,1706437840027,-529.15,0.00021917,2]
[312898448,1706437840036,-4392.68,0.00021917,2]
[312898449,1706437840045,-27734.04,0.00021917,2]
[312898450,1706437840054,-560.94941592,0.00021917,2]
[312898451,1706437840063,-1428.95,0.00021917,2]
[312898452,1706437840072,-500.0,0.00021917,2]
[312898453,1706437840082,-1185.91,0.00021917,2]
[312898454,1706437840091,-1000.0,0.00021917,2]
[312898455,1706437840100,-500.0,0.00021917,2]
[312898456,1706437840109,-500.0,0.00021917,2]
[312898458,1706437840119,-500.0,0.00021917,2]
[312898460,1706437840129,-500.0,0.00021917,2]
[312898462,1706437840138,-500.0,0.00021917,2]
[312898464,1706437840147,-2385.83,0.00021917,2]
[312898466,1706437840156,-684.57,0.00021917,2]
[312898468,1706437840165,-500.0,0.00021917,2]
[312898472,1706437840175,-476.67319883,0.00021917,2]
[312898475,1706437840184,-500.0,0.00021917,2]
[312898478,1706437840193,-2210.46,0.00021917,2]
[312898481,1706437840203,-47065.22,0.00021917,2]
[312898484,1706437840213,-500.0,0.00021917,2]
[312898485,1706437840222,-517.12179365,0.00021917,2]
[312898486,1706437840231,-500.0,0.00021917,2]
[312898488,1706437840240,-500.0,0.00021917,2]
[312898491,1706437840249,-508.20795299,0.00021917,2]
[312898492,1706437840258,-500.0,0.00021917,2]
[312898493,1706437840268,-508.85286137,0.00021917,2]
[312898494,1706437840277,-456.30316214,0.00021917,2]
[312898495,1706437840286,-500.0,0.00021917,2]
[312898496,1706437840296,-500.0,0.00021917,2]
[312898497,1706437840305,-500.0,0.00021917,2]
[312898499,1706437840314,-753.94,0.00021917,2]
[312898501,1706437840323,-12713.41,0.00021917,2]
[312898502,1706437840333,-193.33149398,0.00021917,2]
[312898503,1706437840342,-586.16320171,0.00021917,2]
[312898504,1706437840351,-16928.45,0.00021917,2]
[312898505,1706437840360,-200.72682926,0.00021917,2]
[312898506,1706437840369,-355.34258383,0.00021917,2]
[312898507,1706437840378,-18074.88,0.00021917,2]
[312898508,1706437840387,-12058.43,0.00021917,2]
[312898509,1706437840397,-500.0,0.00021917,2]
[312898510,1706437840406,-500.0,0.00021917,2]
[312898511,1706437840417,-500.0,0.00021917,2]
[312898512,1706437840426,-3175.93,0.00021917,2]
[312898513,1706437840437,-915.71,0.00021917,2]
[312898514,1706437840447,-500.0,0.00021917,2]
[312898515,1706437840458,-500.0,0.00021917,2]
[312898516,1706437840468,-500.0,0.00021917,2]
[312898517,1706437840477,-500.0,0.00021917,2]
[312898518,1706437840488,-500.0,0.00021917,2]
[312898519,1706437840499,-500.0,0.00021917,2]
[312898520,1706437840509,-535.34315171,0.00021917,2]
[312898521,1706437840521,-500.0,0.00021917,2]
[312898522,1706437840531,-500.0,0.00021917,2]
[312898523,1706437840541,-875.19,0.00021917,2]
[312898524,1706437840550,-510.194983,0.00021917,2]
[312898525,1706437840559,-500.0,0.00021917,2]
[312898526,1706437840569,-500.0,0.00021917,2]
[312898527,1706437840580,-500.0,0.00021917,2]
[312898528,1706437840589,-166.666666,0.00021918,2]
[312898529,1706437840599,-167.31888484,0.00022,2]
[312898530,1706437840610,-2036.5412467,0.00022,2]
[312898531,1706437840619,-426.44750157,0.00022,2]
[312898532,1706437840628,-3972.88161015,0.00022,2]
[312898533,1706437840638,-293.76675688,0.00022,4]
[312898534,1706437840648,-153.0,0.00022,2]
[312898535,1706437840660,-153.0,0.00022,2]
[312898536,1706437840670,-153.0,0.00022,2]
[312898537,1706437840679,-153.0,0.00022,2]
[312898538,1706437840689,-153.0,0.00022,2]
[312898539,1706437840700,-167.31888484,0.00022091,2]
[312898540,1706437840709,-1445.33196909,0.00022189,2]
[312898541,1706437840719,-2076.27654373,0.00022189,2]
[312898542,1706437840728,-500.0,0.0002219,2]
[312898543,1706437840738,-500.0,0.0002219,2]
[312898544,1706437840749,-500.0,0.0002219,2]
[312898545,1706437840758,-500.0,0.0002219,2]
[312898546,1706437840768,-500.0,0.0002219,2]
[312898547,1706437840777,-500.0,0.0002219,2]
[312898548,1706437840787,-500.0,0.0002219,2]
[312898549,1706437840799,-500.0,0.0002219,2]
[312898550,1706437840808,-500.0,0.0002219,2]
[312898551,1706437840817,-465.77334295,0.0002219,2]
[312898552,1706437840826,-500.0,0.0002219,2]
[312898553,1706437840836,-252.78573443,0.0002219,2]
[312898554,1706437840846,-518.25289995,0.0002219,2]
[312898555,1706437840854,-647.02207258,0.0002219,2]
[312898556,1706437840864,-500.0,0.0002219,2]
[312898557,1706437840874,-500.0,0.0002219,2]
[312898559,1706437840883,-500.0,0.0002219,2]
[312898561,1706437840892,-500.0,0.0002219,2]
[312898563,1706437840901,-500.0,0.0002219,2]
[312898565,1706437840910,-349.66911918,0.0002219,2]
[312898567,1706437840919,-500.0,0.0002219,2]
[312898569,1706437840928,-342.21603129,0.0002219,2]
[312898571,1706437840937,-156.35796755,0.0002219,2]
[312898573,1706437840946,-500.0,0.0002219,2]
[312898575,1706437840955,-164.27609953,0.0002219,2]
[312898577,1706437840965,-500.0,0.0002219,2]
[312898579,1706437840974,-500.0,0.0002219,2]
[312898581,1706437840983,-326.04134007,0.0002219,2]
[312898583,1706437840992,-500.0,0.0002219,2]
[312898585,1706437841001,-500.0,0.0002219,2]
[312898587,1706437841010,-500.0,0.0002219,2]
[312898589,1706437841020,-500.0,0.0002219,2]
[312898591,1706437841029,-500.0,0.0002219,2]
[312898593,1706437841039,-300.0,0.0002219,2]
[312898595,1706437841048,-500.0,0.0002219,2]
[312898597,1706437841057,-500.0,0.0002219,2]
[312898599,1706437841066,-494.45704232,0.0002219,2]
[312898601,1706437841075,-271.9488561,0.0002219,2]
[312898603,1706437841084,-500.0,0.0002219,2]
[312898605,1706437841093,-500.0,0.0002219,2]
[312898607,1706437841102,-500.0,0.0002219,2]
[312898609,1706437841111,-425.31454102,0.0002219,2]
[312898611,1706437841120,-500.0,0.0002219,2]
[312898620,1706437841199,-450.11338084,0.0002219,2]
[312898623,1706437841209,-500.0,0.0002219,2]
[312898625,1706437841219,-500.0,0.0002219,2]
[312898627,1706437841229,-500.0,0.0002219,2]
[312898628,1706437841238,-250.0,0.0002219,2]
[312898631,1706437841247,-500.0,0.0002219,2]
[312898632,1706437841258,-500.0,0.0002219,2]
[312898635,1706437841267,-500.0,0.0002219,2]
[312898638,1706437841276,-500.0,0.0002219,2]
[312898641,1706437841285,-415.76505033,0.0002219,2]
[312898644,1706437841294,-160.99225998,0.0002219,2]
[312898646,1706437841304,-298.48147438,0.0002219,2]
[312898648,1706437841313,-586.9872074,0.0002219,2]
[312898649,1706437841323,-500.0,0.0002219,2]
[312898651,1706437841332,-500.0,0.0002219,2]
[312898653,1706437841341,-500.0,0.0002219,2]
[312898655,1706437841350,-500.0,0.0002219,2]
[312898657,1706437841359,-500.0,0.0002219,2]
[312898659,1706437841368,-193.66564597,0.0002219,2]
[312898661,1706437841377,-500.0,0.0002219,2]
[312898663,1706437841386,-481.11357031,0.0002219,2]
[312898665,1706437841395,-500.0,0.00022191,2]
[312898667,1706437841404,-500.0,0.00022191,2]
[312898669,1706437841413,-500.0,0.00022191,2]
[312898671,1706437841422,-513.19830853,0.00022191,2]
[312898673,1706437841431,-500.0,0.00022191,2]
[312898675,1706437841440,-152.035045,0.00022191,2]
[312898677,1706437841449,-500.0,0.00022191,2]
[312898679,1706437841458,-500.0,0.00022191,2]
[312898682,1706437841467,-500.0,0.00022191,2]
[312898684,1706437841476,-500.0,0.00022191,2]
[312898686,1706437841485,-151.0,0.00022191,2]
[312898688,1706437841494,-500.0,0.00022191,2]
[312898690,1706437841503,-201.658973,0.00022191,2]
[312898691,1706437841512,-201.658973,0.00022191,2]
[312898693,1706437841521,-500.0,0.00022191,2]
[312898695,1706437841530,-500.0,0.00022191,2]
[312898697,1706437841539,-665.77,0.00022191,2]
[312898700,1706437841548,-500.0,0.00022191,2]
[312898702,1706437841557,-500.0,0.00022191,2]
[312898704,1706437841566,-500.0,0.00022191,2]
[312898705,1706437841575,-500.0,0.00022191,2]
[312898707,1706437841584,-784.07,0.00022191,2]
[312898709,1706437841593,-500.0,0.00022191,2]
[312898711,1706437841602,-500.0,0.00022191,2]
[312898712,1706437841612,-500.0,0.00022191,2]
[312898714,1706437841620,-500.0,0.00022191,2]
[312898716,1706437841630,-154.777918,0.00022191,2]
[312898717,1706437841639,-500.0,0.00022191,2]
[312898719,1706437841650,-249.01428502,0.00022191,2]
[312898721,1706437841660,-500.0,0.00022191,2]
[312898723,1706437841669,-500.0,0.00022191,2]
[312898724,1706437841678,-1987.98,0.00022191,2]
[312898725,1706437841687,-500.0,0.00022191,2]
[312898726,1706437841695,-500.0,0.00022191,2]
[312898727,1706437841704,-500.0,0.00022191,2]
[312898728,1706437841713,-500.0,0.00022191,2]
[312898729,1706437841722,-500.0,0.00022191,2]
[312898730,1706437841731,-1694.99,0.00022191,2]
[312898731,1706437841740,-295.09203555,0.00022191,2]
[312898732,1706437841749,-399.27992527,0.00022191,2]
[312898733,1706437841758,-159.862069,0.00022191,2]
[312898735,1706437841767,-159.862069,0.00022191,2]
[312898737,1706437841776,-159.862069,0.00022191,2]
[312898739,1706437841786,-159.862069,0.00022191,2]
[312898741,1706437841799,-866.67,0.00022191,2]
[312898742,1706437841807,-500.0,0.00022191,2]
[312898744,1706437841816,-5299.02,0.00022191,2]
[312898746,1706437841825,-500.0,0.00022191,2]
[312898748,1706437841834,-1684.26,0.00022191,2]
[312898751,1706437841844,-500.0,0.00022191,2]
[312898752,1706437841853,-860.23,0.00022191,2]
[312898754,1706437841862,-508.90670373,0.00022191,2]
[312898756,1706437841871,-500.0,0.00022191,2]
[312898758,1706437841881,-500.0,0.00022191,2]
[312898760,1706437841889,-500.0,0.00022191,2]
[312898762,1706437841899,-312.55132908,0.00022191,2]
[312898764,1706437841907,-500.0,0.00022191,2]
[312898766,1706437841916,-500.0,0.00022191,2]
[312898768,1706437841925,-537.37,0.00022191,2]
[312898770,1706437841934,-533.87,0.00022191,2]
[312898772,1706437841946,-505.18,0.00022191,2]
[312898774,1706437841955,-500.0,0.00022191,2]
[312898776,1706437841964,-500.0,0.00022191,2]
[312898778,1706437841973,-500.0,0.00022191,2]
[312898780,1706437841983,-500.0,0.00022191,2]
[312898782,1706437841991,-1390.76,0.00022191,2]
[312898784,1706437842000,-500.0,0.00022191,2]
[312898786,1706437842009,-500.0,0.00022191,2]
[312898788,1706437842018,-500.0,0.00022191,2]
[312898790,1706437842027,-500.0,0.00022191,2]
[312898792,1706437842036,-217.14462358,0.00022191,2]
[312898794,1706437842045,-500.0,0.00022191,2]
[312898796,1706437842054,-500.0,0.00022191,2]
[312898798,1706437842063,-2509.48,0.00022191,2]
[312898800,1706437842072,-500.0,0.00022191,2]
[312898802,1706437842081,-151.0,0.00022191,2]
[312898804,1706437842091,-151.0,0.00022191,2]
[312898805,1706437842100,-151.0,0.00022191,2]
[312898807,1706437842109,-151.0,0.00022191,2]
[312898809,1706437842118,-151.0,0.00022191,2]
[312898812,1706437842127,-259.166815,0.00022191,2]
[312898813,1706437842137,-500.0,0.00022191,2]
[312898815,1706437842146,-500.0,0.00022191,2]
[312898817,1706437842155,-500.0,0.00022191,2]
[312898818,1706437842165,-500.0,0.00022191,2]
[312898820,1706437842174,-500.0,0.00022191,2]
[312898821,1706437842184,-500.0,0.00022191,2]
[312898822,1706437842194,-500.0,0.00022191,2]
[312898823,1706437842204,-500.0,0.00022191,2]
[312898824,1706437842214,-546.44432364,0.00022191,2]
[312898825,1706437842224,-1828.36,0.00022191,2]
[312898826,1706437842234,-500.0,0.00022191,2]
[312898827,1706437842245,-1781.92,0.00022191,2]
[312898828,1706437842256,-906.05,0.00022191,2]
[312898829,1706437842266,-2156.52,0.00022191,2]
[312898830,1706437842275,-1024.81,0.00022191,2]
[312898831,1706437842284,-819.23,0.00022191,2]
[312898832,1706437842293,-167.017897,0.00022191,2]
[312898833,1706437842302,-167.017897,0.00022191,2]
[312898834,1706437842311,-167.017897,0.00022191,2]
[312898835,1706437842320,-167.017897,0.00022191,2]
[312898836,1706437842329,-500.0,0.00022191,2]
[312898837,1706437842337,-167.017897,0.00022191,2]
[312898838,1706437842346,-167.017897,0.00022191,2]
[312898839,1706437842355,-167.017897,0.00022191,2]
[312898840,1706437842364,-167.017897,0.00022191,2]
[312898841,1706437842373,-478.62562592,0.00022191,2]
[312898842,1706437842382,-500.0,0.00022191,2]
[312898843,1706437842391,-500.0,0.00022191,2]
[312898844,1706437842400,-39004.29,0.00022191,2]
[312898845,1706437842409,-500.0,0.00022191,2]
[312898846,1706437842418,-500.0,0.00022191,2]
[312898847,1706437842427,-500.0,0.00022191,2]
[312898848,1706437842436,-500.0,0.00022191,2]
[312898849,1706437842445,-500.0,0.00022191,2]
[312898850,1706437842454,-500.0,0.00022191,2]
[312898851,1706437842464,-1166.55,0.00022191,2]
[312898852,1706437842473,-2219.22,0.00022191,2]
[312898853,1706437842482,-1181.84,0.00022191,2]
[312898854,1706437842490,-316.22832421,0.00022191,2]
[312898855,1706437842541,-10202.84952288,0.00022191,2]
[312898873,1706437842871,-732.47215291,0.00022191,2]
[312898875,1706437842881,-500.0,0.00022191,2]
[312898877,1706437842891,-1212.42,0.00022191,2]
[312898879,1706437842900,-8.66254427,0.00022191,2]
[312898881,1706437842912,-2988.36745573,0.00022191,2]
[312898883,1706437842921,-500.0,0.00022191,2]
[312898885,1706437842930,-500.0,0.00022191,2]
[312898887,1706437842939,-2487.53,0.00022191,2]
[312898889,1706437842948,-500.0,0.00022191,2]
[312898891,1706437842957,-500.0,0.00022191,2]
[312898893,1706437842966,-500.0,0.00022191,2]
[312898895,1706437842975,-500.0,0.00022191,2]
[312898897,1706437842984,-972.97,0.00022191,2]
[312898899,1706437842993,-500.0,0.00022191,2]
[312898901,1706437843002,-500.0,0.00022191,2]
[312898903,1706437843012,-500.0,0.00022191,2]
[312898905,1706437843021,-500.0,0.00022191,2]
[312898907,1706437843029,-990.61324676,0.00022191,2]
[312898909,1706437843040,-1601.52675324,0.00022191,2]
[312898911,1706437843049,-500.0,0.00022191,2]
[312898913,1706437843059,-4004.24,0.00022191,2]
[312898915,1706437843068,-653.6556713,0.00022191,2]
[312898918,1706437843079,-3605.49935526,0.00022191,2]
[312898973,1706437846107,-500.0,0.00021917,2]
[312898975,1706437846117,-11104.94,0.00022181,3]
[312898976,1706437846126,-1370.03766806,0.00022191,2]
[312898978,1706437866940,151.00302006,0.00030766,30]
[312898979,1706437916819,157.88977188,0.00031,17]
[312898981,1706438149384,169.716648,0.0001994,2]
[312898982,1706438285073,155.00465014,0.00019724,3]
[312898983,1706438305148,155.00465014,0.00019724,3]
[312898984,1706438331261,155.00465014,0.00019724,3]
[312898985,1706438351075,155.00465014,0.00019724,3]
[312898987,1706438361771,719.1862378,0.0001932,2]
[312898988,1706438366526,246.3374139,0.00019143,2]
[312898989,1706438373075,155.00465014,0.00019724,3]
[312898990,1706438393088,155.00465014,0.00019724,3]
[312898991,1706438409088,155.00465014,0.00019724,3]
[312898992,1706438425093,155.00465014,0.00019724,3]
[312898993,1706438439815,2386.3782873,0.0001932,2]
[312898994,1706438449103,155.00465014,0.00019724,3]
[312898995,1706438463812,155.02046238,0.00019724,2]
[312898996,1706438469190,155.00465014,0.00019724,3]
[312898997,1706438489101,155.00465014,0.00019724,3]
[312898998,1706438509105,155.00465014,0.00019724,3]
[312898999,1706438529115,155.00465014,0.00019633,3]
[312899011,1706438543863,300.0,0.0002,2]
[312899012,1706438549257,214.536546,0.00019883,2]
[312899013,1706438551126,155.00465014,0.00019633,3]
[312899014,1706438567555,2847.3256394,0.00019489,2]
[312899015,1706438571131,155.00465014,0.00019633,3]
[312899016,1706438581586,621.33248248,0.00019724,2]
[312899017,1706438589129,155.00465014,0.00019633,3]
[312899018,1706438595571,537.08150344,0.00019633,2]
[312899019,1706438604687,169.716648,0.00019398,2]
[312899020,1706438605122,155.00465014,0.00019633,3]
[312899021,1706438625129,155.00465014,0.00019633,3]
[312899022,1706438628514,49646.0797462,0.00019672,2]
[312899023,1706438643124,155.00465014,0.00019633,3]
[312899024,1706438657134,155.00465014,0.00019633,3]
[312899025,1706438679137,155.00465014,0.00019633,3]
[312899026,1706438695136,155.00465014,0.00019633,3]
[312899027,1706438717145,155.00465014,0.00019633,3]
[312899028,1706438735141,155.00465014,0.00019633,3]
[312899029,1706438753146,155.00465014,0.00019633,3]
[312899031,1706438777140,155.00465014,0.00019633,3]
[312899033,1706438801151,155.00465014,0.00019633,3]
[312899035,1706438821145,155.00465014,0.00019633,3]
[312899036,1706438843145,155.00465014,0.00019633,3]
[312899037,1706438859147,155.00465014,0.00019633,3]
[312899039,1706438879236,155.00465014,0.00019633,3]
[312899040,1706438901184,155.00465014,0.00019633,3]
[312899041,1706438919152,155.00465014,0.00019633,3]
[312899042,1706438937160,155.00465014,0.00019633,3]
[312899043,1706438953170,155.00465014,0.00019633,3]
[312899044,1706438973158,155.00465014,0.00019633,3]
[312899045,1706438995161,155.00620025,0.00019633,3]
[312899046,1706439013186,155.00620025,0.00019633,3]
[312899047,1706439031167,155.00620025,0.00019633,3]
[312899071,1706439034042,-599.46688406,0.00020052,2]
[312899115,1706439038614,-4614.55625619,0.00020052,2]
[312899117,1706439038624,-1485.48078161,0.00020052,2]
[312899119,1706439038633,-620.0257606,0.00020053,2]
[312899121,1706439038643,-7126.6001272,0.00020067,2]
[312899123,1706439038652,-662.39408662,0.00020091,2]
[312899125,1706439038661,-1646.54949107,0.00020789,2]
[312899127,1706439038671,-861.22231419,0.00021669,2]
[312899129,1706439038680,-2235.08098812,0.00021696,2]
[312899131,1706439038689,-153.0,0.000217,2]
[312899133,1706439038698,-153.0,0.00021704,2]
[312899135,1706439038707,-167.31888487,0.000218,2]
[312899137,1706439038716,-167.31888484,0.00021806,2]
[312899139,1706439038726,-4101.81,0.00021807,3]
[312899141,1706439038735,-8570.48,0.00021807,3]
[312899143,1706439038744,-7142.07,0.00021807,3]
[312899145,1706439038753,-5951.72,0.00021807,3]
[312899147,1706439038762,-167.31888484,0.00021811,2]
[312899150,1706439038772,-214.41595541,0.00021815,2]
[312899151,1706439038781,-155.14514716,0.00021815,2]
[312899154,1706439038791,-156.20898937,0.00021815,2]
[312899156,1706439038800,-200.89934999,0.00021816,2]
[312899158,1706439038809,-276000.0,0.00021817,2]
[312899160,1706439038818,-167.31888484,0.00021817,2]
[312899161,1706439038827,-153.0,0.000219,2]
[312899163,1706439038836,-153.0,0.000219,2]
[312899165,1706439038845,-153.0,0.000219,2]
[312899167,1706439038854,-243.38918816,0.00021915,2]
[312899169,1706439038863,-282.9628484,0.00021915,2]
[312899171,1706439038872,-1367.98900414,0.00021915,2]
[312899173,1706439038881,-265.46862061,0.00021915,2]
[312899175,1706439038890,-155.02116883,0.00021915,2]
[312899177,1706439038900,-297.37206321,0.00021915,2]
[312899178,1706439038909,-191.036015,0.00021915,2]
[312899179,1706439038920,-1589.9986431,0.00021915,2]
[312899180,1706439038929,-171.95327391,0.00021915,2]
[312899181,1706439038939,-788.87275899,0.00021915,2]
[312899182,1706439038948,-167.66325036,0.00021915,2]
[312899183,1706439038957,-207.99032037,0.00021915,2]
[312899184,1706439038966,-1406.49498548,0.00021915,2]
[312899185,1706439038975,-16903.19736175,0.00021915,2]
[312899186,1706439038985,-621.01361207,0.00021915,2]
[312899187,1706439038994,-488.59596042,0.00021915,2]
[312899188,1706439039003,-188.99436691,0.00021915,2]
[312899189,1706439039012,-2076.27654373,0.00021915,2]
[312899190,1706439039021,-156.09416496,0.00021916,2]
[312899191,1706439039030,-6680.22541794,0.00021916,2]
[312899192,1706439039039,-500.0,0.00021916,2]
[312899193,1706439039048,-500.0,0.00021916,2]
[312899194,1706439039057,-500.0,0.00021916,2]
[312899195,1706439039066,-500.0,0.00021916,2]
[312899196,1706439039075,-500.0,0.00021916,2]
[312899197,1706439039085,-500.0,0.00021916,2]
[312899198,1706439039094,-500.0,0.00021916,2]
[312899199,1706439039103,-647.02207258,0.00021916,2]
[312899200,1706439039112,-500.0,0.00021916,2]
[312899201,1706439039121,-500.0,0.00021916,2]
[312899202,1706439039130,-156.35796755,0.00021916,2]
[312899203,1706439039139,-634.03071431,0.00021916,2]
[312899204,1706439039148,-500.0,0.00021916,2]
[312899205,1706439039158,-500.0,0.00021916,2]
[312899206,1706439039168,-500.0,0.00021916,2]
[312899207,1706439039177,-450.11338084,0.00021916,2]
[312899208,1706439039186,-500.0,0.00021916,2]
[312899209,1706439039198,-500.0,0.00021916,2]
[312899210,1706439039207,-500.0,0.00021916,2]
[312899211,1706439039217,-500.0,0.00021916,2]
[312899212,1706439039226,-500.0,0.00021916,2]
[312899213,1706439039237,-500.0,0.00021916,2]
[312899214,1706439039246,-500.0,0.00021916,2]
[312899215,1706439039255,-500.0,0.00021916,2]
[312899216,1706439039265,-500.0,0.00021916,2]
[312899217,1706439039276,-500.0,0.00021916,2]
[312899218,1706439039285,-500.0,0.00021916,2]
[312899219,1706439039294,-500.0,0.00021916,2]
[312899220,1706439039303,-164.27609953,0.00021916,2]
[312899221,1706439039313,-500.0,0.00021916,2]
[312899222,1706439039323,-500.0,0.00021916,2]
[312899223,1706439039332,-500.0,0.00021916,2]
[312899224,1706439039342,-500.0,0.00021916,2]
[312899225,1706439039351,-500.0,0.00021916,2]
[312899226,1706439039360,-500.0,0.00021916,2]
[312899227,1706439039371,-500.0,0.00021916,2]
[312899228,1706439039380,-500.0,0.00021916,2]
[312899229,1706439039389,-425.31454102,0.00021916,2]
[312899230,1706439039398,-500.0,0.00021916,2]
[312899231,1706439039408,-500.0,0.00021916,2]
[312899232,1706439039418,-500.0,0.00021916,2]
[312899233,1706439039427,-500.0,0.00021916,2]
[312899234,1706439039436,-500.0,0.00021916,2]
[312899235,1706439039445,-447.53970492,0.00021916,2]
[312899236,1706439039454,-500.0,0.00021916,2]
[312899237,1706439039463,-500.0,0.00021917,2]
[312899238,1706439039473,-500.0,0.00021917,2]
[312899239,1706439039482,-500.0,0.00021917,2]
[312899240,1706439039491,-500.0,0.00021917,2]
[312899241,1706439039501,-500.0,0.00021917,2]
[312899242,1706439039509,-500.0,0.00021917,2]
[312899243,1706439039518,-500.0,0.00021917,2]
[312899244,1706439039527,-507.78936856,0.00021917,2]
[312899245,1706439039537,-500.0,0.00021917,2]
[312899246,1706439039546,-897.64,0.00021917,2]
[312899247,1706439039555,-1002.23887986,0.00021917,2]
[312899248,1706439039563,-500.0,0.00021917,2]
[312899249,1706439039572,-500.0,0.00021917,2]
[312899250,1706439039582,-153.33165401,0.00021917,2]
[312899251,1706439039591,-500.0,0.00021917,2]
[312899252,1706439039599,-500.0,0.00021917,2]
[312899253,1706439039608,-500.0,0.00021917,2]
[312899254,1706439039617,-527.14,0.00021917,2]
[312899255,1706439039626,-1451.23,0.00021917,2]
[312899257,1706439039636,-500.0,0.00021917,2]
[312899260,1706439039645,-500.0,0.00021917,2]
[312899263,1706439039654,-500.0,0.00021917,2]
[312899264,1706439039662,-504.04847332,0.00021917,2]
[312899266,1706439039672,-270.96680179,0.00021917,2]
[312899268,1706439039681,-500.0,0.00021917,2]
[312899269,1706439039690,-500.0,0.00021917,2]
[312899270,1706439039699,-500.0,0.00021917,2]
[312899271,1706439039708,-500.0,0.00021917,2]
[312899272,1706439039717,-904.35,0.00021917,2]
[312899273,1706439039726,-906.05,0.00021917,2]
[312899274,1706439039735,-500.0,0.00021917,2]
[312899275,1706439039744,-500.0,0.00021917,2]
[312899276,1706439039753,-2156.52,0.00021917,2]
[312899277,1706439039762,-500.0,0.00021917,2]
[312899278,1706439039771,-156.42516188,0.00021917,2]
[312899279,1706439039781,-500.0,0.00021917,2]
[312899280,1706439039868,-500.0,0.00021917,2]
[312899281,1706439039877,-500.0,0.00021917,2]
[312899282,1706439039886,-500.0,0.00021917,2]
[312899283,1706439039895,-500.0,0.00021917,2]
[312899284,1706439039904,-5529.41,0.00021917,2]
[312899285,1706439039913,-500.0,0.00021917,2]
[312899286,1706439039922,-1181.84,0.00021917,2]
[312899287,1706439039931,-500.0,0.00021917,2]
[312899288,1706439039941,-500.0,0.00021917,2]
[312899289,1706439039950,-1757.48,0.00021917,2]
[312899290,1706439039958,-1161.91,0.00021917,2]
[312899291,1706439039967,-500.0,0.00021917,2]
[312899292,1706439039976,-500.0,0.00021917,2]
[312899293,1706439039985,-557.08,0.00021917,2]
[312899294,1706439039993,-500.0,0.00021917,2]
[312899295,1706439040003,-500.0,0.00021917,2]
[312899296,1706439040012,-500.0,0.00021917,2]
[312899297,1706439040021,-500.0,0.00021917,2]
[312899298,1706439040030,-500.0,0.00021917,2]
[312899299,1706439040039,-500.0,0.00021917,2]
[312899300,1706439040048,-500.0,0.00021917,2]
[312899301,1706439040057,-511.32578597,0.00021917,2]
[312899302,1706439040066,-1079.66,0.00021917,2]
[312899303,1706439040075,-500.0,0.00021917,2]
[312899304,1706439040084,-500.0,0.00021917,2]